[Event "Early-Titled-Tuesday-Blitz-May-14-2024"]
[Site "Chess.com"]
[Date "2024.05.14"]
[Round "5"]
[White "rodp92"]
[Black "kyawmyataung2005"]
[Result "1-0"]
[WhiteElo "2528"]
[BlackElo "2249"]
[TimeControl "180+1"]
[EndTime "8:58:13 PDT"]
[Termination "rodp92 won on time"]

1. d4 {[%clk 0:03:00.9]} 1... Nf6 {[%clk 0:02:56.7]} 2. Nf3 {[%clk 0:03:01.3]}
2... g6 {[%clk 0:02:56]} 3. g3 {[%clk 0:03:01.7]} 3... Bg7 {[%clk 0:02:56.1]} 4.
Bg2 {[%clk 0:03:02.4]} 4... O-O {[%clk 0:02:56.1]} 5. O-O {[%clk 0:03:03.1]}
5... d6 {[%clk 0:02:56.4]} 6. c4 {[%clk 0:03:03.6]} 6... Nbd7 {[%clk 0:02:56.6]}
7. Nc3 {[%clk 0:03:04.2]} 7... e5 {[%clk 0:02:55.2]} 8. e3 {[%clk 0:03:04.7]}
8... c6 {[%clk 0:02:52.3]} 9. b3 {[%clk 0:03:04.4]} 9... Qc7 {[%clk 0:02:52]}
10. a4 {[%clk 0:03:03.7]} 10... Rd8 {[%clk 0:02:46.2]} 11. Ba3 {[%clk
0:03:03.5]} 11... Nf8 {[%clk 0:02:45.5]} 12. h3 {[%clk 0:02:56.2]} 12... Ne6
{[%clk 0:02:38.3]} 13. Re1 {[%clk 0:02:52.5]} 13... h6 {[%clk 0:02:21.3]} 14.
Rc1 {[%clk 0:02:51.7]} 14... a5 {[%clk 0:02:19.8]} 15. Kh2 {[%clk 0:02:49.3]}
15... h5 {[%clk 0:02:14.6]} 16. Qc2 {[%clk 0:02:46.2]} 16... Bh6 {[%clk
0:02:02.8]} 17. Bxd6 {[%clk 0:02:28.2]} 17... Qxd6 {[%clk 0:01:47.7]} 18. dxe5
{[%clk 0:02:27.2]} 18... Qc7 {[%clk 0:01:47.1]} 19. exf6 {[%clk 0:02:27]} 19...
Nc5 {[%clk 0:01:37.3]} 20. Rcd1 {[%clk 0:02:21.3]} 20... Be6 {[%clk 0:01:32.6]}
21. h4 {[%clk 0:02:10.5]} 21... Bg4 {[%clk 0:01:25.7]} 22. Rd4 {[%clk
0:02:04.6]} 22... Ne6 {[%clk 0:01:17.8]} 23. Rxd8+ {[%clk 0:01:55]} 23... Rxd8
{[%clk 0:01:16.9]} 24. Rd1 {[%clk 0:01:48.9]} 24... Bf8 {[%clk 0:01:10.9]} 25.
Ne4 {[%clk 0:01:30.2]} 25... Nc5 {[%clk 0:00:39.3]} 26. Nxc5 {[%clk 0:01:07.6]}
26... Bxc5 {[%clk 0:00:40.1]} 27. Rd2 {[%clk 0:00:58.3]} 27... Bb4 {[%clk
0:00:34.6]} 28. Rd4 {[%clk 0:00:55.9]} 28... Bc5 {[%clk 0:00:27.7]} 29. Rd3
{[%clk 0:00:50.5]} 29... Bf5 {[%clk 0:00:23]} 30. Rxd8+ {[%clk 0:00:43.7]} 30...
Qxd8 {[%clk 0:00:23.6]} 31. Qc3 {[%clk 0:00:43.4]} 31... b6 {[%clk 0:00:19.2]}
32. Qe5 {[%clk 0:00:31.5]} 32... Bc2 {[%clk 0:00:18.1]} 33. Nd4 {[%clk
0:00:28.5]} 33... Bxd4 {[%clk 0:00:16.6]} 34. exd4 {[%clk 0:00:28]} 34... Bxb3
{[%clk 0:00:15.1]} 35. Bxc6 {[%clk 0:00:24.5]} 35... Bxc4 {[%clk 0:00:15.1]} 36.
d5 {[%clk 0:00:25]} 36... Kf8 {[%clk 0:00:13.9]} 37. d6 {[%clk 0:00:24.7]} 37...
Be6 {[%clk 0:00:13.7]} 38. Bb5 {[%clk 0:00:22.2]} 38... Kg8 {[%clk 0:00:10.8]}
39. Qf4 {[%clk 0:00:21.6]} 39... Kh7 {[%clk 0:00:10.4]} 40. d7 {[%clk 0:00:18]}
40... Bf5 {[%clk 0:00:07.3]} 41. Qd6 {[%clk 0:00:17.3]} 41... Bxd7 {[%clk
0:00:02.2]} 42. Bxd7 {[%clk 0:00:16.6]} 1-0

[Event "Early-Titled-Tuesday-Blitz-May-14-2024"]
[Site "Chess.com"]
[Date "2024.05.14"]
[Round "5"]
[White "sergoy"]
[Black "jumpingknight20"]
[Result "0-1"]
[WhiteElo "2996"]
[BlackElo "2757"]
[TimeControl "180+1"]
[EndTime "8:58:16 PDT"]
[Termination "jumpingknight20 won on time"]

1. d4 {[%clk 0:03:00.9]} 1... Nf6 {[%clk 0:03:00.1]} 2. c4 {[%clk 0:03:01.4]}
2... e6 {[%clk 0:03:00.7]} 3. Nf3 {[%clk 0:03:02]} 3... d5 {[%clk 0:03:00.1]} 4.
Nc3 {[%clk 0:03:02.4]} 4... Bb4 {[%clk 0:03:00.4]} 5. Qa4+ {[%clk 0:02:58.4]}
5... Nc6 {[%clk 0:03:00.4]} 6. e3 {[%clk 0:02:59.1]} 6... O-O {[%clk 0:02:58.1]}
7. Qc2 {[%clk 0:02:59.8]} 7... dxc4 {[%clk 0:02:49.8]} 8. Bxc4 {[%clk
0:02:59.7]} 8... Bd6 {[%clk 0:02:50.1]} 9. h3 {[%clk 0:02:58.7]} 9... e5 {[%clk
0:02:49]} 10. O-O {[%clk 0:02:58.8]} 10... exd4 {[%clk 0:02:29.7]} 11. exd4
{[%clk 0:02:59.7]} 11... Nb4 {[%clk 0:02:29.6]} 12. Qd1 {[%clk 0:03:00]} 12...
Bf5 {[%clk 0:02:29]} 13. Bg5 {[%clk 0:02:59.5]} 13... h6 {[%clk 0:02:28.3]} 14.
Bh4 {[%clk 0:02:59.8]} 14... Bf4 {[%clk 0:01:36.7]} 15. Ne2 {[%clk 0:02:48.6]}
15... Bc2 {[%clk 0:01:29]} 16. Qe1 {[%clk 0:02:45.7]} 16... Bd6 {[%clk
0:01:29.3]} 17. a3 {[%clk 0:02:40.5]} 17... Nc6 {[%clk 0:01:19.7]} 18. Nc3
{[%clk 0:02:40.8]} 18... Na5 {[%clk 0:01:09.6]} 19. Ba2 {[%clk 0:02:33.9]} 19...
Bd3 {[%clk 0:01:06.4]} 20. Nd5 {[%clk 0:02:25]} 20... g5 {[%clk 0:00:59.8]} 21.
Qxa5 {[%clk 0:02:02.9]} 21... Bxf1 {[%clk 0:00:43.3]} 22. Nxg5 {[%clk
0:01:30.5]} 22... Nxd5 {[%clk 0:00:43.2]} 23. Qxd5 {[%clk 0:01:21.9]} 23... hxg5
{[%clk 0:00:34.1]} 24. Bxg5 {[%clk 0:01:16.9]} 24... c6 {[%clk 0:00:34.5]} 25.
Qf5 {[%clk 0:01:08.2]} 25... Bd3 {[%clk 0:00:34.2]} 26. Qg4 {[%clk 0:01:06]}
26... Qc8 {[%clk 0:00:34.5]} 27. Qh4 {[%clk 0:00:58.2]} 27... Qf5 {[%clk
0:00:28.6]} 28. Bf6 {[%clk 0:00:58.5]} 28... Qh7 {[%clk 0:00:28.2]} 29. Qg5+
{[%clk 0:00:58.8]} 29... Bg6 {[%clk 0:00:25]} 30. Be5 {[%clk 0:00:50.6]} 30...
Bxe5 {[%clk 0:00:22.4]} 31. dxe5 {[%clk 0:00:51.5]} 31... Qh5 {[%clk 0:00:22.7]}
32. Qg3 {[%clk 0:00:40.7]} 32... Rad8 {[%clk 0:00:20.5]} 33. Bc4 {[%clk
0:00:33.6]} 33... Rd1+ {[%clk 0:00:19.9]} 34. Rxd1 {[%clk 0:00:33.7]} 34...
Qxd1+ {[%clk 0:00:20.8]} 35. Kh2 {[%clk 0:00:34.6]} 35... Qh5 {[%clk 0:00:16.5]}
36. f4 {[%clk 0:00:33.4]} 36... Qf5 {[%clk 0:00:14.5]} 37. Be2 {[%clk
0:00:30.5]} 37... Rd8 {[%clk 0:00:12.1]} 38. Bg4 {[%clk 0:00:30.3]} 38... Qd3
{[%clk 0:00:12.4]} 39. Qh4 {[%clk 0:00:30.7]} 39... Rd4 {[%clk 0:00:10.6]} 40.
Qf6 {[%clk 0:00:11.9]} 40... Qe3 {[%clk 0:00:10]} 41. f5 {[%clk 0:00:06.5]}
41... Qf4+ {[%clk 0:00:10.1]} 42. Kg1 {[%clk 0:00:06.3]} 42... Bxf5 {[%clk
0:00:09.7]} 43. e6 {[%clk 0:00:03.5]} 43... Bxe6 {[%clk 0:00:07.9]} 0-1

[Event "Early-Titled-Tuesday-Blitz-May-14-2024"]
[Site "Chess.com"]
[Date "2024.05.14"]
[Round "5"]
[White "Alonmindlin"]
[Black "Shuvalov"]
[Result "1-0"]
[WhiteElo "2702"]
[BlackElo "2555"]
[TimeControl "180+1"]
[EndTime "8:58:17 PDT"]
[Termination "Alonmindlin won on time"]

1. e4 {[%clk 0:03:00.9]} 1... e6 {[%clk 0:02:59.5]} 2. d4 {[%clk 0:03:00.2]}
2... d5 {[%clk 0:02:59.7]} 3. Nd2 {[%clk 0:03:00.7]} 3... c5 {[%clk 0:02:59.2]}
4. Ngf3 {[%clk 0:03:00.5]} 4... Nc6 {[%clk 0:02:58.9]} 5. Bb5 {[%clk 0:02:58.9]}
5... a6 {[%clk 0:02:54.4]} 6. Bxc6+ {[%clk 0:02:58.4]} 6... bxc6 {[%clk
0:02:55.3]} 7. O-O {[%clk 0:02:58.9]} 7... Nf6 {[%clk 0:02:54.1]} 8. e5 {[%clk
0:02:58.8]} 8... Nd7 {[%clk 0:02:54.1]} 9. Re1 {[%clk 0:02:53.7]} 9... Be7
{[%clk 0:02:51.1]} 10. Nf1 {[%clk 0:02:52.8]} 10... cxd4 {[%clk 0:02:48.8]} 11.
Nxd4 {[%clk 0:02:52.8]} 11... Qc7 {[%clk 0:02:45.1]} 12. Ng3 {[%clk 0:02:44.8]}
12... Nxe5 {[%clk 0:02:20.1]} 13. Bf4 {[%clk 0:02:43.2]} 13... Bd6 {[%clk
0:02:18.2]} 14. Qh5 {[%clk 0:02:28.3]} 14... g6 {[%clk 0:01:23.5]} 15. Qe2
{[%clk 0:02:17.7]} 15... Nf3+ {[%clk 0:01:16.8]} 16. Qxf3 {[%clk 0:02:13.1]}
16... Bxf4 {[%clk 0:01:17]} 17. Rad1 {[%clk 0:01:44.2]} 17... O-O {[%clk
0:01:15.2]} 18. c4 {[%clk 0:01:34.9]} 18... Bh6 {[%clk 0:01:09.4]} 19. b3 {[%clk
0:01:28.3]} 19... Bd7 {[%clk 0:01:04.8]} 20. h4 {[%clk 0:01:25.6]} 20... Qf4
{[%clk 0:01:02.5]} 21. Qxf4 {[%clk 0:01:19.3]} 21... Bxf4 {[%clk 0:01:03.4]} 22.
Nge2 {[%clk 0:01:19.3]} 22... Bh6 {[%clk 0:00:58.9]} 23. g4 {[%clk 0:01:18.7]}
23... Rfc8 {[%clk 0:00:55.8]} 24. g5 {[%clk 0:01:19]} 24... Bg7 {[%clk
0:00:55.8]} 25. c5 {[%clk 0:01:19.3]} 25... a5 {[%clk 0:00:55.1]} 26. Nf3 {[%clk
0:01:17.2]} 26... e5 {[%clk 0:00:53.7]} 27. Kg2 {[%clk 0:01:15.2]} 27... Re8
{[%clk 0:00:52.4]} 28. Ng3 {[%clk 0:01:10]} 28... Bg4 {[%clk 0:00:50.9]} 29. Rd2
{[%clk 0:01:06.6]} 29... a4 {[%clk 0:00:45.9]} 30. b4 {[%clk 0:01:06.4]} 30...
a3 {[%clk 0:00:46.2]} 31. b5 {[%clk 0:01:02.7]} 31... cxb5 {[%clk 0:00:42.5]}
32. Rxd5 {[%clk 0:01:02.5]} 32... Be6 {[%clk 0:00:31.6]} 33. Rd2 {[%clk
0:01:01.8]} 33... b4 {[%clk 0:00:29.5]} 34. Rb1 {[%clk 0:01:01]} 34... e4 {[%clk
0:00:24.8]} 35. Nxe4 {[%clk 0:00:59.8]} 35... Bb2 {[%clk 0:00:22.5]} 36. Rdxb2
{[%clk 0:00:57.3]} 36... axb2 {[%clk 0:00:22.2]} 37. Nf6+ {[%clk 0:00:57.9]}
37... Kg7 {[%clk 0:00:20.6]} 38. Nxe8+ {[%clk 0:00:58.4]} 38... Rxe8 {[%clk
0:00:20.3]} 39. Rxb2 {[%clk 0:00:59]} 39... Bd5 {[%clk 0:00:19.6]} 40. Rxb4
{[%clk 0:00:59]} 40... Bxa2 {[%clk 0:00:18.2]} 41. Nd4 {[%clk 0:00:57.2]} 41...
Bd5+ {[%clk 0:00:13.5]} 42. Kg3 {[%clk 0:00:57.4]} 42... Rc8 {[%clk 0:00:13.8]}
43. Rb5 {[%clk 0:00:56.5]} 43... Bc4 {[%clk 0:00:13.5]} 44. Ra5 {[%clk
0:00:55.9]} 44... Bd5 {[%clk 0:00:13.2]} 45. Kf4 {[%clk 0:00:54.8]} 45... h6
{[%clk 0:00:13.2]} 46. Ke5 {[%clk 0:00:54.9]} 46... Bg2 {[%clk 0:00:12.7]} 47.
Kf4 {[%clk 0:00:46.8]} 47... hxg5+ {[%clk 0:00:11.8]} 48. hxg5 {[%clk
0:00:46.9]} 48... Bd5 {[%clk 0:00:10.7]} 49. Ke5 {[%clk 0:00:47]} 49... Bg2
{[%clk 0:00:10.7]} 50. f3 {[%clk 0:00:47.4]} 50... Re8+ {[%clk 0:00:09.7]} 51.
Kf4 {[%clk 0:00:47.8]} 51... Rd8 {[%clk 0:00:10]} 52. Ra4 {[%clk 0:00:47.7]}
52... Rc8 {[%clk 0:00:09.8]} 53. c6 {[%clk 0:00:47.9]} 53... Bf1 {[%clk
0:00:09.6]} 54. Ke5 {[%clk 0:00:47.5]} 54... Bd3 {[%clk 0:00:08.4]} 55. Kd6
{[%clk 0:00:47.3]} 55... Rd8+ {[%clk 0:00:05.8]} 56. Kc5 {[%clk 0:00:47.5]}
56... Bf1 {[%clk 0:00:04.1]} 57. Ra7 {[%clk 0:00:46.9]} 57... Bh3 {[%clk
0:00:03.4]} 58. f4 {[%clk 0:00:46.1]} 58... Re8 {[%clk 0:00:02.9]} 59. c7 {[%clk
0:00:45.9]} 59... Bd7 {[%clk 0:00:01.6]} 60. Rb7 {[%clk 0:00:44.1]} 1-0

[Event "Early-Titled-Tuesday-Blitz-May-14-2024"]
[Site "Chess.com"]
[Date "2024.05.14"]
[Round "5"]
[White "tandaleo"]
[Black "ChessQueen"]
[Result "1-0"]
[WhiteElo "2591"]
[BlackElo "2778"]
[TimeControl "180+1"]
[EndTime "8:58:20 PDT"]
[Termination "tandaleo won by checkmate"]

1. d4 {[%clk 0:03:00.9]} 1... f5 {[%clk 0:02:59.7]} 2. Nf3 {[%clk 0:02:50.1]}
2... Nf6 {[%clk 0:02:59.8]} 3. c4 {[%clk 0:02:41.9]} 3... g6 {[%clk 0:02:59.9]}
4. e3 {[%clk 0:02:42.2]} 4... Bg7 {[%clk 0:02:59.7]} 5. b4 {[%clk 0:02:42.5]}
5... a5 {[%clk 0:02:58.8]} 6. b5 {[%clk 0:02:42]} 6... c6 {[%clk 0:02:53.2]} 7.
a4 {[%clk 0:02:40.4]} 7... d5 {[%clk 0:02:52.3]} 8. Nc3 {[%clk 0:02:33.3]} 8...
Ne4 {[%clk 0:02:46.3]} 9. Qb3 {[%clk 0:02:29]} 9... Be6 {[%clk 0:02:37.2]} 10.
cxd5 {[%clk 0:02:01.8]} 10... Bxd5 {[%clk 0:02:26.8]} 11. Nxd5 {[%clk
0:02:02.1]} 11... cxd5 {[%clk 0:02:26.1]} 12. Ba3 {[%clk 0:01:57.3]} 12... O-O
{[%clk 0:02:22.4]} 13. Bd3 {[%clk 0:01:53.5]} 13... h6 {[%clk 0:02:07]} 14. Rc1
{[%clk 0:01:51]} 14... Re8 {[%clk 0:01:59]} 15. Ne5 {[%clk 0:01:44.4]} 15...
Bxe5 {[%clk 0:01:47.7]} 16. dxe5 {[%clk 0:01:44.4]} 16... e6 {[%clk 0:01:48.3]}
17. h4 {[%clk 0:01:34.5]} 17... Nd7 {[%clk 0:01:47.8]} 18. Bxe4 {[%clk
0:01:09.6]} 18... fxe4 {[%clk 0:01:45.6]} 19. Bd6 {[%clk 0:01:09.5]} 19... Rc8
{[%clk 0:01:40.2]} 20. Rxc8 {[%clk 0:01:02.8]} 20... Qxc8 {[%clk 0:01:40.3]} 21.
O-O {[%clk 0:01:03.3]} 21... Nb6 {[%clk 0:01:37.4]} 22. f3 {[%clk 0:00:56.8]}
22... exf3 {[%clk 0:01:32.4]} 23. Rxf3 {[%clk 0:00:56.9]} 23... Qc4 {[%clk
0:01:29.8]} 24. Qb1 {[%clk 0:00:53.5]} 24... Qe4 {[%clk 0:01:18.8]} 25. Qf1
{[%clk 0:00:53.9]} 25... Nd7 {[%clk 0:01:09.7]} 26. h5 {[%clk 0:00:43.4]} 26...
g5 {[%clk 0:00:39.3]} 27. Rf7 {[%clk 0:00:43.4]} 27... Qxe3+ {[%clk 0:00:36.8]}
28. Kh1 {[%clk 0:00:40.2]} 28... Rc8 {[%clk 0:00:35.3]} 29. Kh2 {[%clk
0:00:04.7]} 29... Qd4 {[%clk 0:00:10.7]} 30. Rxd7 {[%clk 0:00:02.9]} 30... Qh4+
{[%clk 0:00:10.7]} 31. Kg1 {[%clk 0:00:02.8]} 31... Qd4+ {[%clk 0:00:10.8]} 32.
Kh2 {[%clk 0:00:01.6]} 32... Qh4+ {[%clk 0:00:11]} 33. Kg1 {[%clk 0:00:02.1]}
33... Qxh5 {[%clk 0:00:10.7]} 34. Rc7 {[%clk 0:00:01.7]} 34... Rxc7 {[%clk
0:00:08.3]} 35. Bxc7 {[%clk 0:00:02.6]} 35... d4 {[%clk 0:00:04.7]} 36. Qf6
{[%clk 0:00:02.2]} 36... Qd1+ {[%clk 0:00:04.3]} 37. Kh2 {[%clk 0:00:02.7]}
37... Qh5+ {[%clk 0:00:04.5]} 38. Kg3 {[%clk 0:00:02.5]} 38... Qh4+ {[%clk
0:00:05]} 39. Kf3 {[%clk 0:00:03]} 39... g4+ {[%clk 0:00:04.6]} 40. Ke4 {[%clk
0:00:03.1]} 40... Qe1+ {[%clk 0:00:04.5]} 41. Kxd4 {[%clk 0:00:03.6]} 41... Qd2+
{[%clk 0:00:04.9]} 42. Kc5 {[%clk 0:00:02.7]} 42... Qe3+ {[%clk 0:00:04.7]} 43.
Kd6 {[%clk 0:00:02.9]} 43... Qd4+ {[%clk 0:00:00.8]} 44. Kxe6 {[%clk 0:00:03.4]}
44... Qc4+ {[%clk 0:00:01.2]} 45. Kd7 {[%clk 0:00:03.5]} 45... Qd5+ {[%clk
0:00:01.6]} 46. Kc8 {[%clk 0:00:04.1]} 46... Qxg2 {[%clk 0:00:00.7]} 47. e6
{[%clk 0:00:04.4]} 47... Qf3 {[%clk 0:00:01.2]} 48. Qg6+ {[%clk 0:00:02.3]}
48... Kf8 {[%clk 0:00:01.1]} 49. Bd6# {[%clk 0:00:02.4]} 1-0

[Event "Early-Titled-Tuesday-Blitz-May-14-2024"]
[Site "Chess.com"]
[Date "2024.05.14"]
[Round "5"]
[White "IlanSchnaider"]
[Black "Nitzan_Steinberg"]
[Result "0-1"]
[WhiteElo "2730"]
[BlackElo "2970"]
[TimeControl "180+1"]
[EndTime "8:58:22 PDT"]
[Termination "Nitzan_Steinberg won by checkmate"]

1. e4 {[%clk 0:03:00.9]} 1... c5 {[%clk 0:03:00.2]} 2. Nf3 {[%clk 0:02:59.1]}
2... d6 {[%clk 0:03:00.6]} 3. d4 {[%clk 0:02:57]} 3... cxd4 {[%clk 0:02:59.9]}
4. Nxd4 {[%clk 0:02:57.9]} 4... Nf6 {[%clk 0:02:58.9]} 5. Nc3 {[%clk 0:02:58.3]}
5... a6 {[%clk 0:02:59.5]} 6. Bd3 {[%clk 0:02:58.6]} 6... e6 {[%clk 0:02:59.6]}
7. O-O {[%clk 0:02:52.2]} 7... Be7 {[%clk 0:02:58.9]} 8. f4 {[%clk 0:02:52.1]}
8... Qc7 {[%clk 0:02:57.9]} 9. a4 {[%clk 0:02:48.7]} 9... Nc6 {[%clk 0:02:56]}
10. Be3 {[%clk 0:02:41.2]} 10... Nb4 {[%clk 0:02:54.5]} 11. Kh1 {[%clk
0:02:38.9]} 11... h5 {[%clk 0:02:49]} 12. Na2 {[%clk 0:02:05]} 12... Ng4 {[%clk
0:02:30.6]} 13. Bg1 {[%clk 0:01:54.9]} 13... Nc6 {[%clk 0:02:25.8]} 14. Be2
{[%clk 0:01:46.4]} 14... Nf6 {[%clk 0:02:11.1]} 15. Bf3 {[%clk 0:01:44.3]} 15...
Bd7 {[%clk 0:02:06.7]} 16. Nc3 {[%clk 0:01:28.2]} 16... Rc8 {[%clk 0:02:05.9]}
17. Re1 {[%clk 0:01:15.6]} 17... h4 {[%clk 0:01:57.8]} 18. f5 {[%clk 0:00:51.1]}
18... Ne5 {[%clk 0:01:56.3]} 19. fxe6 {[%clk 0:00:49.7]} 19... fxe6 {[%clk
0:01:57.2]} 20. h3 {[%clk 0:00:42.1]} 20... O-O {[%clk 0:01:45]} 21. Bh2 {[%clk
0:00:39.4]} 21... Nc4 {[%clk 0:01:34]} 22. Qc1 {[%clk 0:00:28.2]} 22... Nxb2
{[%clk 0:01:29.1]} 23. Nce2 {[%clk 0:00:23.3]} 23... Nc4 {[%clk 0:01:26.4]} 24.
Nf4 {[%clk 0:00:23.6]} 24... Rfe8 {[%clk 0:01:10.4]} 25. Ndxe6 {[%clk
0:00:21.1]} 25... Qa5 {[%clk 0:01:07.8]} 26. Qd1 {[%clk 0:00:19.5]} 26... Ne5
{[%clk 0:00:47.1]} 27. Nd4 {[%clk 0:00:19.7]} 27... Bxa4 {[%clk 0:00:36.9]} 28.
Bh5 {[%clk 0:00:16.8]} 28... Red8 {[%clk 0:00:28.9]} 29. Nfe6 {[%clk 0:00:16.1]}
29... Rd7 {[%clk 0:00:27.5]} 30. Nf5 {[%clk 0:00:16.7]} 30... Qb5 {[%clk
0:00:16]} 31. Nexg7 {[%clk 0:00:11.3]} 31... Bxc2 {[%clk 0:00:15.6]} 32. Qd2
{[%clk 0:00:11.7]} 32... Nxe4 {[%clk 0:00:10.3]} 33. Qh6 {[%clk 0:00:05.3]}
33... Qd5 {[%clk 0:00:04.2]} 34. Nxe7+ {[%clk 0:00:03.1]} 34... Rxe7 {[%clk
0:00:04.1]} 35. Nf5 {[%clk 0:00:04]} 35... Rh7 {[%clk 0:00:01.6]} 36. Qf4 {[%clk
0:00:02.5]} 36... Rc3 {[%clk 0:00:02.1]} 37. Rf1 {[%clk 0:00:01.7]} 37... Bd3
{[%clk 0:00:02.1]} 38. Ne7+ {[%clk 0:00:02.2]} 38... Rxe7 {[%clk 0:00:01.6]} 39.
Qf8+ {[%clk 0:00:03.1]} 39... Kh7 {[%clk 0:00:02.2]} 40. Qxe7+ {[%clk
0:00:03.9]} 40... Kh6 {[%clk 0:00:02.7]} 41. Rf6+ {[%clk 0:00:03.7]} 41... Nxf6
{[%clk 0:00:02.8]} 42. Qxf6+ {[%clk 0:00:04.6]} 42... Kxh5 {[%clk 0:00:02.6]}
43. Bf4 {[%clk 0:00:04.7]} 43... Nf7 {[%clk 0:00:01.2]} 44. Qg7 {[%clk 0:00:04]}
44... Rc2 {[%clk 0:00:00.4]} 45. Qh8+ {[%clk 0:00:03.2]} 45... Nxh8 {[%clk
0:00:00.2]} 46. Kg1 {[%clk 0:00:02.6]} 46... Ng6 {[%clk 0:00:01.1]} 47. g4+
{[%clk 0:00:02.8]} 47... hxg3 {[%clk 0:00:01]} 48. Bxg3 {[%clk 0:00:03.7]} 48...
Qg2# {[%clk 0:00:01.6]} 0-1

[Event "Early-Titled-Tuesday-Blitz-May-14-2024"]
[Site "Chess.com"]
[Date "2024.05.14"]
[Round "5"]
[White "meoluoi91"]
[Black "Makswolf200817"]
[Result "0-1"]
[WhiteElo "2570"]
[BlackElo "2782"]
[TimeControl "180+1"]
[EndTime "8:58:23 PDT"]
[Termination "Makswolf200817 won by resignation"]

1. d4 {[%clk 0:03:00.9]} 1... d5 {[%clk 0:02:54.6]} 2. c4 {[%clk 0:02:58.5]}
2... e6 {[%clk 0:02:54.6]} 3. Nc3 {[%clk 0:02:56.8]} 3... c6 {[%clk 0:02:54.6]}
4. e3 {[%clk 0:02:38]} 4... Nf6 {[%clk 0:02:53.7]} 5. Nf3 {[%clk 0:02:37.3]}
5... Nbd7 {[%clk 0:02:54.3]} 6. Qc2 {[%clk 0:02:37]} 6... Bd6 {[%clk 0:02:53.5]}
7. b3 {[%clk 0:02:28.4]} 7... O-O {[%clk 0:02:50.5]} 8. Bb2 {[%clk 0:02:28.3]}
8... b6 {[%clk 0:02:50.5]} 9. cxd5 {[%clk 0:02:24.3]} 9... exd5 {[%clk
0:02:48.8]} 10. Bd3 {[%clk 0:02:24.1]} 10... Re8 {[%clk 0:02:46.7]} 11. O-O
{[%clk 0:02:24]} 11... Bb7 {[%clk 0:02:37.3]} 12. Rfd1 {[%clk 0:02:13.9]} 12...
Qe7 {[%clk 0:02:34.5]} 13. Ne2 {[%clk 0:01:56.2]} 13... g6 {[%clk 0:02:21]} 14.
Rac1 {[%clk 0:01:40.2]} 14... Kg7 {[%clk 0:02:13.8]} 15. Nf4 {[%clk 0:01:33.3]}
15... Ne4 {[%clk 0:02:07.6]} 16. Bf1 {[%clk 0:01:30.2]} 16... h5 {[%clk
0:02:01.6]} 17. Nd3 {[%clk 0:01:07]} 17... f6 {[%clk 0:01:56.8]} 18. Nh4 {[%clk
0:01:03]} 18... Nf8 {[%clk 0:01:47.9]} 19. Nf4 {[%clk 0:01:00.5]} 19... Kh6
{[%clk 0:01:05.3]} 20. Bd3 {[%clk 0:00:52.4]} 20... Qf7 {[%clk 0:00:42.8]} 21.
Re1 {[%clk 0:00:29.7]} 21... Bb4 {[%clk 0:00:34.1]} 22. Re2 {[%clk 0:00:24.6]}
22... Bd6 {[%clk 0:00:26.3]} 23. Rce1 {[%clk 0:00:19.4]} 23... Bxf4 {[%clk
0:00:26.2]} 24. exf4 {[%clk 0:00:19.6]} 24... Nd6 {[%clk 0:00:26.9]} 25. g3
{[%clk 0:00:17.9]} 25... Rxe2 {[%clk 0:00:23.6]} 26. Rxe2 {[%clk 0:00:18]} 26...
Re8 {[%clk 0:00:24.3]} 27. Ba3 {[%clk 0:00:18.5]} 27... Rxe2 {[%clk 0:00:13.5]}
28. Qxe2 {[%clk 0:00:19.4]} 28... Qd7 {[%clk 0:00:13.9]} 29. Qf3 {[%clk
0:00:16.3]} 29... f5 {[%clk 0:00:11.9]} 30. Qe3 {[%clk 0:00:15.7]} 30... Ne6
{[%clk 0:00:07.2]} 31. Qe5 {[%clk 0:00:15.9]} 31... Ne4 {[%clk 0:00:02.8]} 32.
Bxe4 {[%clk 0:00:14.3]} 32... dxe4 {[%clk 0:00:02.9]} 33. Bb2 {[%clk 0:00:14.7]}
33... Nf8 {[%clk 0:00:01.7]} 34. Qf6 {[%clk 0:00:14.7]} 34... Qg7 {[%clk
0:00:01.4]} 35. Qg5+ {[%clk 0:00:14.1]} 35... Kh7 {[%clk 0:00:02.1]} 36. h3
{[%clk 0:00:12.9]} 36... Ne6 {[%clk 0:00:02.5]} 37. Nxf5 {[%clk 0:00:12.2]}
37... Nxg5 {[%clk 0:00:02.1]} 38. Nxg7 {[%clk 0:00:12.6]} 38... Nf3+ {[%clk
0:00:02.9]} 39. Kg2 {[%clk 0:00:13.1]} 39... Kxg7 {[%clk 0:00:03.8]} 40. d5+
{[%clk 0:00:13.7]} 40... Kf7 {[%clk 0:00:04.6]} 41. d6 {[%clk 0:00:14.6]} 41...
Ke6 {[%clk 0:00:05.1]} 42. f5+ {[%clk 0:00:15.5]} 42... gxf5 {[%clk 0:00:05.3]}
43. g4 {[%clk 0:00:15]} 43... hxg4 {[%clk 0:00:06.2]} 44. hxg4 {[%clk
0:00:15.9]} 44... fxg4 {[%clk 0:00:06.9]} 45. Kg3 {[%clk 0:00:16.8]} 45... Kxd6
{[%clk 0:00:07.4]} 46. Kxg4 {[%clk 0:00:17.7]} 46... Kd5 {[%clk 0:00:08]} 47.
Kf4 {[%clk 0:00:18]} 47... Ne1 {[%clk 0:00:08.5]} 48. Bc3 {[%clk 0:00:16.8]}
48... Nd3+ {[%clk 0:00:08.8]} 49. Ke3 {[%clk 0:00:17.7]} 49... Nc1 {[%clk
0:00:07.3]} 50. f3 {[%clk 0:00:14.6]} 50... exf3 {[%clk 0:00:07.6]} 51. Kxf3
{[%clk 0:00:13.8]} 51... Nxa2 {[%clk 0:00:08.2]} 0-1